{"text_format":"1","workbook":"xlsx","n_sheets":10,"sheets":["Import","A(8) RMS H-A","A(8) RMS H-A Report","A(8) RMS W-B","A(8) RMS W-B Report","Daily VDV W-B","Daily VDV W-B Report","FFT Import","Help","Logger"],"not_rendered":{"charts":0,"images":3,"macros":1,"external_links":0,"defined_names":0,"comments":0,"pivot_tables":0},"unopened":[],"bounds":{"document_bytes":16777216,"sheet_cells":100000,"rows_first":2000,"rows_last":500,"rows_between":2000,"halvings":0,"cell_chars":16384,"cell_head_chars":4096},"cells_cut":0,"cells_raw":0,"read":"whole","date_system":"1900"}

{"sheet":"Import","index":0,"n_rows":8,"n_cols":16,"rows_kept":8,"cut":false,"hidden":false,"merged":[]}
["VM31",null,"Data Import",null,"Ver. 3.3","Status:","All tables deleted.",null,"Records:",0,"Ser. No.:",null,"Cal.:"]
[]
[]
[]
[null,null,null,null,null,null,null,null,null,null,null,null,{"$f":"IF(A1=\"CV:31A\",\"www.cirrusresearch.co.uk\",\"www.mmf.de\")","v":"www.mmf.de"}]
[null,"Use check boxes to select data for A(8) calculation. "]
[null,null,null,null,null,null,null,null,null,"Measurements",null,null,null,"Combined measurements of X/Y/Z"]
["Sel.","No.","Date","Time","Comment","Mode","Detection","Filter (weighting factors)","Weighting","X","Y","Z","A","B","C","Unit"]

{"sheet":"A(8) RMS H-A","index":1,"n_rows":15,"n_cols":16,"rows_kept":15,"cut":false,"hidden":false,"merged":[]}
["Calculation of Daily Exposure A(8) for Hand-Arm Vibrations",null,null,null,null,null,null,"In accordance with: EU Directive 2002/44EC and ISO 5349-1:2001"]
[null,null,null,null,"Operating person:",null,"Person 1","Activities:",null,"Activity 1"]
[null,null,null,null,"(overwrite \"Person\" ",null,"Person 2","(overwrite \"Activity\" ",null,"Activity 2"]
[null,null,null,null,"with names)",null,"Person 3","with descriptive text)",null,"Activity 3"]
[null,null,null,null,null,null,"Person 4",null,null,"Activity 4","Exposure limit value:",null,null,null,5,"m/S²"]
[null,null,null,null,null,null,"Person 5",null,null,"Activity 5","Exposure action value:",null,null,null,2.5,"m/s²"]
[null,null,null,null,null,null,"Person 6",null,null,"Activity 6"]
[null,null,null,null,null,null,"Person 7",null,null,"Activity 7"]
[null,null,null,null,null,null,"Person 8",null,null,"Activity 8"]
[null,null,null,null,null,null,"Person 9",null,null,"Activity 9"]
[null,null,null,null,null,null,"Person 10",null,null,"Activity 10"]
[]
["1. Hand-Arm vibration values in m/s² (only interval RMS - no VDV):",null,null,null,null,null,null,null,null,"2. Assign persons and activities:",null,null,null,"3. A(8) calculation results:"]
["No.","IRMS values X/Y/Z",null,null,"Vector sum","Max. RMS","Comment","Date","Time","Person","Activity","Duration",null,"Person","A(8)"]
[null,"awx","awy","awz","aw(Vec)","MTVV",{"$f":"\"(as entered in \"&Import!A1&\")\"","v":"(as entered in VM31)"},"dd.mmyy","hh:mm:ss","(select)","(select)","hrs","min"]

{"sheet":"A(8) RMS H-A Report","index":2,"n_rows":71,"n_cols":13,"rows_kept":71,"cut":false,"hidden":false,"merged":[]}
["Daily Vibration Exposure "]
["Report for Hand-Arm Vibration Measurements to ISO 5349-1:2001"]
[]
["Company / customer:"]
["Purpose of measurement:"]
["Date:"]
["Person in charge:"]
[]
["Location of measurement:"]
["Temperature:",null,null,null,null,null,"Moisture (yes/no):"]
[]
["Tested machine:"]
["  Type / Model:"]
["  Age / condition:"]
["  Weight of hand-held part:"]
["  Type of handle:"]
["  Power:"]
["  RPM / speed:"]
["  Tool:"]
["  Measures of vibration damping:"]
["  Work piece / material:"]
[]
["Instrument:",{"$f":"\"Human Vibration Meter \"&Import!A1","v":"Human Vibration Meter VM31"},null,null,null,null,null,null,"Ser. No.:",null,{"$f":"Import!L1","v":0}]
["  Sensor:","KS903.10",null,null,null,null,null,null,"Ser. No.:"]
[]
["  Last Calibration:",null,null,null,null,null,null,null,"by:"]
[]
[]
["  Weighting filters:"]
[null,"X / Y / Z:","Wh / Wh / Wh"]
["  Weighting factors for vector sum:"]
[null,"Y / Y / Z:","1,0 / 1,0 / 1,0"]
[]
["Measuring points and directions:"]
["  (add drawing)"]
[]
[]
[]
[]
[]
[]
[]
[]
[]
[]
["Sensor attachment:"]
["Arm posture:"]
["Left-handed person (yes/no):"]
[]
["Further details:"]
[]
[]
[]
[]
[]
[]
[]
[]
[]
[]
[]
[]
["Limit values to  EU Directive 2002/44EC:"]
[]
["Exposure action value:",null,"2,5 m/s²",null,"Exposure limit value:",null,null,null,"5 m/s²"]
[]
["Measuring results"]
[]
["Person","Activity","Comment","Date","Time","Duration",null,null,"Accelerations (IRMS)",null,"Vect. sum","Transient","Part. Expos."]
[null,null,{"$f":"\"(from \"&Import!A1&\")\"","v":"(from VM31)"},null,null,"   Ti",null,"awx","awy","awz","Aw(vec)","MTVV","Ai(8)"]
[null,null,null,"dd.mm.yy","hh.mm.ss","hrs","min","m/s²","m/s²","m/s²","m/s²","m/s²","m/s²"]

{"sheet":"A(8) RMS W-B","index":3,"n_rows":15,"n_cols":16,"rows_kept":15,"cut":false,"hidden":false,"merged":[]}
["Calculation of Daily Exposure A(8) for Whole-Body Vibrations (based on RMS input)",null,null,null,null,null,null,null,null,null,"In accordance with: EU Directive 2002/44EC and ISO 2631-1: 1997"]
[null,null,null,null,"Operating person:",null,"Person 1","Activities:",null,"Activity 1"]
[null,null,null,null,"(overwrite \"Person\" ",null,"Person 2","(overwrite \"Activity\" ",null,"Activity 2"]
[null,null,null,null,"with names)",null,"Person 3","with descriptive text)",null,"Activity 3"]
[null,null,null,null,null,null,"Person 4",null,null,"Activity 4","Exposure limit value:",null,null,null,1.1499999999999999,"m/S²"]
[null,null,null,null,null,null,"Person 5",null,null,"Activity 5","Exposure action value:",null,null,null,0.5,"m/s²"]
[null,null,null,null,null,null,"Person 6",null,null,"Activity 6"]
[null,null,null,null,null,null,"Person 7",null,null,"Activity 7"]
[null,null,null,null,null,null,"Person 8",null,null,"Activity 8"]
[null,null,null,null,null,null,"Person 9",null,null,"Activity 9"]
[null,null,null,null,null,null,"Person 10",null,null,"Activity 10"]
[]
["1. Whole-Body vibration values in m/s² (only interval RMS - no VDV):",null,null,null,null,null,null,null,null,"2. Assign persons and activities:",null,null,null,"3. A(8) calculation results:"]
["No.","IRMS values X/Y/Z",null,null,"Vector sum","Max. RMS","Comment","Date","Time","Person","Activity","Duration",null,"Person","A(8)"]
[null,"awx","awy","awz","aw(Vec)","MTVV",{"$f":"\"(as entered in \"&Import!A1&\")\"","v":"(as entered in VM31)"},"dd.mmyy","hh:mm:ss","(select)","(select)","hrs","min"]

{"sheet":"A(8) RMS W-B Report","index":4,"n_rows":71,"n_cols":15,"rows_kept":71,"cut":false,"hidden":false,"merged":[]}
["Daily Vibration Exposure "]
["Report for Whole-Body Vibration Measurements to ISO 2631-1: 1997"]
[]
["Company / customer:"]
["Purpose of measurement:"]
["Date:"]
["Person in charge:"]
[]
["Location of measurement:"]
["Temperature:",null,null,null,null,null,"Moisture (yes/no):"]
[]
["Tested machine:"]
["  Type / Model:"]
[]
["  Age / condition:"]
[]
["  Speed:"]
[]
["   Driveway surface:"]
[]
["  Measures of vibration damping:"]
[]
["Instrument:",{"$f":"\"Human Vibration Meter \"&Import!A1","v":"Human Vibration Meter VM31"},null,null,null,null,null,null,"Ser. No.:",null,{"$f":"Import!L1","v":0}]
["  Sensor:","KB103SVD",null,null,null,null,null,null,"Ser. No.:"]
[]
["  Last Calibration:",null,null,null,null,null,null,null,"by:"]
[]
[]
["  Weighting filters:"]
[null,"X / Y / Z:","Wd / Wd / Wk"]
["  Weighting factors for vector sum:"]
[null,"Y / Y / Z:","1,4 / 1,4 / 1,0"]
[]
["Measuring points and directions:"]
["  (add drawing)"]
[]
[]
[]
[]
[]
[]
[]
[]
[]
["Sensor position:"]
[]
["Posture of person:"]
[]
["Further details:"]
[]
[]
[]
[]
[]
[]
[]
[]
[]
[]
[]
[]
[]
["Limit values to  EU Directive 2002/44EC:"]
[]
[null,"Exposure action value:",null,"0,5 m/s²",null,"Exposure limit value:",null,null,null,"1,15 m/s²"]
[]
["Measuring results"]
[]
["Person","Activity","Comment","Date","Time","Duration",null,null,"Accelerations (IRMS)",null,"Vect. sum","Max. RMS","Partial exposures"]
[null,null,{"$f":"\"(from \"&Import!A1&\" )\"","v":"(from VM31 )"},null,null,"   Ti",null,"awx","awy","awz","Aw(vec)","MTVV","A(8)x","A(8)y","A(8)z"]
[null,null,null,"dd.mm.yy","hh.mm.ss","hrs","min","m/s²","m/s²","m/s²","m/s²",0,0,"m/s²","m/s²"]

{"sheet":"Daily VDV W-B","index":5,"n_rows":17,"n_cols":24,"rows_kept":17,"cut":false,"hidden":false,"merged":[]}
["Calculation of Daily VDV Exposure for Whole-Body Vibrations",null,null,null,null,null,null,null,null,null,"In accordance with: EU Directive 2002/44EC and ISO 2631-1: 1997"]
[null,null,null,null,"Operating person:",null,"Person 1","Activities:",null,"Activity 1"]
[null,null,null,null,"(overwrite \"Person\" ",null,"Person 2","(overwrite \"Activity\" ",null,"Activity 2"]
[null,null,null,null,"with names)",null,"Person 3","with descriptive text)",null,"Activity 3"]
[null,null,null,null,null,null,"Person 4",null,null,"Activity 4",null,null,"Exposure limit value:",null,null,null,null,21,"m/S^1,75"]
[null,null,null,null,null,null,"Person 5",null,null,"Activity 5",null,null,"Exposure action value:",null,null,null,null,9.1,"m/s^1,75"]
[null,null,null,null,null,null,"Person 6",null,null,"Activity 6"]
[null,null,null,null,null,null,"Person 7",null,null,"Activity 7"]
[null,null,null,null,null,null,"Person 8",null,null,"Activity 8"]
[null,null,null,null,null,null,"Person 9",null,null,"Activity 9"]
[null,null,null,null,null,null,"Person 10",null,null,"Activity 10"]
[]
["1. Whole-Body vibration values in m/s^1,75 (only VDV - no RMS):",null,null,null,null,null,null,null,null,"2. Assign measurements:",null,"Measur.",null,null,null,"Exposure","3. Daily VDV calculation results:"]
["No.","VDV for X/Y/Z",null,null,"Max.","Max. abs.","Comment","Date","Time","Person","Activity","duration",null,null,"duration",null,"Person","Daily VDV"]
[null,"VDVx","VDVy","VDVz","VDVmax","VDVmax abs",{"$f":"\"(as entered in \"&Import!A1&\")\"","v":"(as entered in VM31)"},"dd.mmyy","hh:mm:ss","(select)","(select)","hrs","min"]
[]
[null,null,null,null,null,null,null,null,null,null,null,null,null,null,null,null,null,null,null,null,null,null,null,1024.8860467200002]

{"sheet":"Daily VDV W-B Report","index":6,"n_rows":71,"n_cols":17,"rows_kept":71,"cut":false,"hidden":false,"merged":[]}
["Daily VDV Exposure "]
["Report for Whole-Body Vibration Measurements to ISO 2631-1: 1997"]
[]
["Company / customer:"]
["Purpose of measurement:"]
["Date:"]
["Person in charge:"]
[]
["Location of measurement:"]
["Temperature:",null,null,null,null,null,"Moisture (yes/no):"]
[]
["Tested machine:"]
["  Type / Model:"]
[]
["  Age / condition:"]
[]
["  Speed:"]
[]
["   Driveway surface:"]
[]
["  Measures of vibration damping:"]
[]
["Instrument:",{"$f":"\"Human Vibration Meter \"&Import!A1","v":"Human Vibration Meter VM31"},null,null,null,null,null,null,null,null,"Ser. No.:",null,{"$f":"Import!L1","v":0}]
["  Sensor:","KB103SVD",null,null,null,null,null,null,null,null,"Ser. No.:"]
[]
["  Last Calibration:",null,null,null,null,null,null,null,null,null,"by:"]
[]
[]
["  Weighting filters:"]
[null,"X / Y / Z:","Wd / Wd / Wk"]
["  Weighting factors for vector sum:"]
[null,"Y / Y / Z:","1,4 / 1,4 / 1,0"]
[]
["Measuring points and directions:"]
["  (add drawing)"]
[]
[]
[]
[]
[]
[]
[]
[]
[]
["Sensor position:"]
[]
["Posture of person:"]
[]
["Further details:"]
[]
[]
[]
[]
[]
[]
[]
[]
[]
[]
[]
[]
[]
["Limit values to  EU Directive 2002/44EC:"]
[]
[null,"Exposure action value:",null,"9,1 m/s^1,75",null,"Exposure limit value:",null,null,null,null,null,"21 m/s^1,75"]
[]
["Measuring results"]
[]
["Person","Activity","Comment","Date","Time","Meas.",null,"Exposure",null,null,"VDV",null,"Max","Max abs.",null,"Partial daily VDV"]
[null,null,{"$f":"\"(from \"&Import!A1&\" )\"","v":"(from VM31 )"},null,null,"duration",null,"duration",null,"X","Y","Z","XYZ","XYZ","X","Y","Z"]
[null,null,null,"dd.mm.yy","hh.mm.ss","hrs","min","hrs","min",null,"m/s^1,75",null,"m/s^1,75","m/s^1,75",null,"m/s^1,75"]

{"sheet":"FFT Import","index":7,"n_rows":16,"n_cols":30,"rows_kept":16,"cut":false,"hidden":false,"merged":[]}
[{"$f":"Import!A1","v":"VM31"},null,null,"FFT Import"]
[]
[null,"Status:",null,"All FFTs deleted."]
[]
[]
[]
[]
[null,null,null,null,null,null,null,null,null,null,null,"FFT chart 1 not loaded.",null,null,null,null,null,null,null,null,"FFT chart 2 not loaded.",null,null,null,null,null,null,null,null,"FFT chart 3 not loaded."]
[]
[]
[null,"Records:",null,null,0]
[]
[null,"Up to three  FFT charts can be displayed."]
[null,"Use the checkboxes to select data."]
[]
[null,"Select FFTs",null,"No.","Date","Time","Comment",null,"Accelerations X/Y/Z in m/s²"]

{"sheet":"Help","index":8,"n_rows":122,"n_cols":3,"rows_kept":122,"cut":false,"hidden":false,"merged":[]}
[{"$f":"Import!A1","v":"VM31"},null,"Data Import Help"]
[]
["Introduction"]
[]
[{"$f":"\"This file is intended for importing measurement, FFT and log data from the \"&A1&\" Vibration Meter. \"","v":"This file is intended for importing measurement, FFT and log data from the VM31 Vibration Meter. "}]
["It performs the calculation of Daily Vibration Exposure A(8) for hand-arm and whole-body vibration."]
["Based on whole-body VDV measurements also Daily VDV Exposure can be calculated."]
["The calculated human vibration results are transferred to report sheets including the necessary data according to ISO 2631 or ISO 5349"]
[]
["Macros"]
[]
["The file is compatible with Microsoft Excel Version 2007 and higher. It includes macros written in VBA. "]
["To use its functions please enable macro execution as follows:"]
[]
[null,"Excel 2007:"]
[null,"- Click on the \"Office\" button"]
[null,"- Click \"Excel options\""]
[null,"- Select \"Trust Center\" / \"Trust Center Settings\""]
[null,"- Select \"Disable all macros with notification\" (a security notification will be shown each time you open the file) or"]
[null,"  Select \"Enable all macros\" (file opens without notification, potential risk of opening  dangerous macro code)"]
[]
[null,"Excel 2010 / 2013:"]
[null,"- Click \"File\" / \"Options\" / \"Trust Center\" / \"Trust Center Settings\""]
[null,"- Select \"Macro Settings\" and choose the option as shown above."]
[]
["You can adapt or modify the macro code if desired. To do this, perform the following steps:"]
[]
[null,"Excel 2007:"]
[null,"- Click on the \"Office\" button"]
[null,"- Click \"Excel options\""]
[null,"- Click \"Popular\", select the option \"Show Developer tab in the Ribbon\" and click OK."]
[null,"- Select the \"Developer\" tab from the toolbar at the top of the screen and click on the \"Visual Basic\" option in the Code group."]
[null,"- Now the Microsoft Visual Basic editor should appear which allows you to view and edit the VBA macro code."]
[]
[null,"Excel 2010 / 2013:"]
[null,"- Click \"File\" / \"Options\""]
[null,"- Click \"Customize Ribbon\""]
[null,"- Under \"Customize  Ribbon\", in the \"Main Tabs\" list, click \"Developer\", and then OK."]
[null,"- Select the \"Developer\" tab from the toolbar at the top of the screen and click on the \"Visual Basic\" option in the Code group."]
[null,"- Now the Microsoft Visual Basic editor should appear and you can view and edit the VBA macro code."]
[]
[null,"Notice:","This macro file runs on 32 and 64 bit systems. "]
[]
[{"$f":"\"Importing Measurement Data from the \"&Import!A1","v":"Importing Measurement Data from the VM31"}]
[]
["To import stored measurements from the instrument, open the \"Import\" worksheet."]
["If the table should contain data from a previous session, save this file under another name, if desired."]
["Click \"Clear tables\". This will erase all data  from the import worksheets and the A(8) calculation and report sheets."]
[{"$f":"\"Switch on the instrument and connect it to the PC via the supplied USB cable.  The \"&Import!A1&\" uses for communication a virtual COM port interface. \"","v":"Switch on the instrument and connect it to the PC via the supplied USB cable.  The VM31 uses for communication a virtual COM port interface. "}]
[{"$f":"\"Click 'Import measurements'. The \"&Import!A1&\" with its virtual COM port number should be automatically detected.\"","v":"Click 'Import measurements'. The VM31 with its virtual COM port number should be automatically detected."}]
["The messages in the \"Status\" field will inform you about import progress. Data import may take between a few seconds and some minutes"]
["depending on the amount of data. After reading in the raw data the table in the \"Import\" sheet will be filled with measurements."]
[{"$f":"\"The data includes a record no., time and date, the comment entered in the \"&Import!A1&\", the measuring mode and the used filters, followed by\"","v":"The data includes a record no., time and date, the comment entered in the VM31, the measuring mode and the used filters, followed by"}]
["the measuring values X/Y/Z and A, if measured. Columns B and C contain combined measurements like vector sum or peak value, depending on the selected mode."]
[]
["Troubleshooting at Import Problems"]
[]
[{"$f":"\"If Excel should not find the \"&Import!A1&\" please verify if Windows has assigned a COM port. Open the Windows Control Panel / System /Device Manager / Ports (COM & LPT).\"","v":"If Excel should not find the VM31 please verify if Windows has assigned a COM port. Open the Windows Control Panel / System /Device Manager / Ports (COM & LPT)."}]
["Look for the entry \"MSP-SA430 - CDC\" and note its COM port number. If there should be no such entry, try to use another USB port or replace the USB cable."]
["The COM port number must not be higher than 9. You can change the assigned number under Port Settings / Advanced."]
["Proper function of the USB driver can also be tested without Excel by means of a terminal program like, for example, Termite."]
["You can download Termite from http://www.compuphase.com/software/termite-3.1.exe"]
[{"$f":"\"Select under 'Settings' the COM port where your \"&Import!A1&\" was detected. The other COM port settings are not relevant.\"","v":"Select under 'Settings' the COM port where your VM31 was detected. The other COM port settings are not relevant."}]
["Enter in the terminal input line #M to download measurements or #F to download FFT data and press enter. Now the data should appear in the terminal window."]
["In some cases instrument detection by Excel may fail because of other connected equipment using virtual COM port mode. It may be necessary to disconnect such equipment temporarily."]
[]
["Data Transfer to Human Vibration Worksheets"]
[]
["Only measurements in H/A (hand-arm) and W/B (whole-body) modes are suitable for human vibration calculations."]
["The left column of the \"Import\" worksheet contains a checkbox for each measurement."]
["You can select here the H/A or W/B records you want to use for human vibration evaluation. "]
["Alternatively you may click the \"Select all\" button. This will transfer all suitable measurements to the human vibration worksheets."]
["After selecting the records click \"Transfer selected data to daily exposure worksheets\"."]
["A message box will show you the number of records transferred to the worksheets for RMS hand-arm, RMS whole-body or VDV whole-body."]
[]
["Daily Vibration Dose Calculation"]
[]
["Now switch to the relevant worksheet \"A(8) RMS H-A\", \"A(8) RMS W-B\" or \"Daily VDV W-B\""]
["You will find there the transferred measurements. In addition there are drop down menus for persons and activities to be assigned to each measurement."]
["To perform daily exposure calculations you need to assign persons and activities. Daily exposure will be calculated for each person individually."]
["In case of more than one activity partial exposures and combined exposures are calculated."]
["Up to 10 persons and activities can be assigned. You may overwrite the fields \"Person…\" and \"Activity…\" with real names or activities to get clearer results."]
["For daily exposure calculation also an exposure time needs to be entered. This is the duration of a particular activity per work day."]
["For daily VDV exposure it is necessary to enter the measuring time additionally."]
["Now click the \"A(8) calculation\" or \"Daily exposure calculation\" button. "]
["You will see the assigned persons with their respective vibration exposures in the orange field."]
["The color of the exposure values change if limits are exceeded. According to EU Directive 2002/44EC there is an \"exposure action value\""]
["and an \"exposure limit value\". These limits and the warning colors can be seen  above the calculation button."]
[]
["Report Generation"]
[]
["The calculated daily exposure values are automatically transferred to the respective report worksheet."]
["These reports are based on the requirements of ISO 2631 and ISO 5349. They start with two pages of information about the test conditions."]
["These are to be filled manually. On page 3 the measurements start. A table shows all measurements including those which have not been assigned to "]
["persons and activities. The table includes the X/Y/Z values and combined values, like vector sum, MTVV or maximum VDV."]
["For measurements assigned to persons and activities the resulting partial vibration exposure can be seen."]
["The table of measurements is followed by the daily vibration exposure results."]
[]
["Importing FFT Data"]
[]
[{"$f":"\"The \"&Import!A1&\" can also store frequency spectrums. To download them, open the 'FFT Import' worksheet.\"","v":"The VM31 can also store frequency spectrums. To download them, open the 'FFT Import' worksheet."}]
["To import data the worksheet must not contain old FFTs. Click \"Clear FFTs\" to delete the worksheet."]
["Now click \"Import FFT data\".  A bar graph will indicate the import progress. Import may take several minutes for larger amounts of data."]
["Each FFT record will be shown with date, time and comment text. Four rows show the frequencies and the belonging accelerations for X/Y/Z."]
["In the columns you find three checkboxes for each record. These can be used to display the selected FFT graphically."]
["Up to three FFTs can be displayed. The checkboxes select the data for diagram 1, 2 and 3."]
[]
["Importing Log Data"]
[]
[{"$f":"\"To import stored data logger files from the \"&Import!A1&\", open the worksheet 'Logger'.\"","v":"To import stored data logger files from the VM31, open the worksheet 'Logger'."}]
[{"$f":"\"Switch on the instrument and connect it to the PC via the supplied USB cable.  The \"&Import!A1&\" uses for communication a virtual COM port interface. \"","v":"Switch on the instrument and connect it to the PC via the supplied USB cable.  The VM31 uses for communication a virtual COM port interface. "}]
[{"$f":"\"Click 'Import log file headers'. The \"&Import!A1&\" with its virtual COM port number should be automatically detected.\"","v":"Click 'Import log file headers'. The VM31 with its virtual COM port number should be automatically detected."}]
["Now the headers of all stored logfiles are downloaded from the instrument. These include the log file number used for storing,"]
["start date and time, detection mode (RMS or Peak), measuring mode and filter settings."]
["The messages in the \"Status\" field will inform you about import progress. The import of file headers will take some seconds."]
["All log file headers are shown as a table with one line per log file. The actual log file contents has not been imported yet."]
["To import the contents of a log file click the checkbox \"Open no. …\" of the desired log file."]
["A new worksheet will be created for the log file contents. In the upper part you will find the header data of the selected file."]
["The download time depends on the number of records. Maximum log file size is 32,000 records. In this case the download time will be about 140 seconds."]
["Download progress is indicated in the status field in increments of 100 records. When the log file is complete all records will be listed in a table,"]
["each line showing a time stamp and the three axis values. In addition the log file is shown in a time plot."]
["Use the Excel functions to further process the log file data."]

{"sheet":"Logger","index":9,"n_rows":4,"n_cols":14,"rows_kept":4,"cut":false,"hidden":false,"merged":[]}
[{"$f":"Import!A1","v":"VM31"},"Data Logger Import",null,null,null,"Status:","Import finished.",null,null,21,null,150536,null,"2015-04-01"]
[]
[]
["Log File No.","Date","Time","Detection","Mode","Filter",null,"Open"]